Workbook

Sheet Лист1
B2: 15д. 20ч. 14м. | C2: 15*1440+ 20*60+ 14*1 | D2: =формула -> 22814 | E2: ="="&C2 -> =15*1440+ 20*60+ 14*1 | F2: =15*1440+ 20*60+ 14*1 -> 22814
B3: 2ч. 21м. | C3: 2*60+ 21*1 | D3: =формула -> 141 | E3: ="="&C3 -> =2*60+ 21*1 | F3: =2*60+ 21*1 -> 141
B4: 9д. 6ч. 50м. | C4: 9*1440+ 6*60+ 50*1 | D4: =формула -> 13370 | E4: ="="&C4 -> =9*1440+ 6*60+ 50*1 | F4: =9*1440+ 6*60+ 50*1 -> 13370
B5: 6д. 2ч. 2м. | C5: 6*1440+ 2*60+ 2*1 | D5: =формула -> 8762 | E5: =6*1440+ 2*60+ 2*1 | F5: =6*1440+ 2*60+ 2*1 -> 8762
B6: 6д. 1ч. 47м. | C6: 6*1440+ 1*60+ 47*1 | D6: =формула -> 8747 | E6: =6*1440+ 1*60+ 47*1 | F6: =6*1440+ 1*60+ 47*1 -> 8747
B7: 6д. 5ч. 26м. | C7: 6*1440+ 5*60+ 26*1 | D7: =формула -> 8966 | E7: =6*1440+ 5*60+ 26*1 | F7: =6*1440+ 5*60+ 26*1 -> 8966
B8: 19ч. 17м. | C8: 19*60+ 17*1 | D8: =формула -> 1157 | E8: =19*60+ 17*1 | F8: =19*60+ 17*1 -> 1157
B9: 2д. 57м. | C9: 2*1440+ 57*1 | D9: =формула -> 2937 | E9: =2*1440+ 57*1 | F9: =2*1440+ 57*1 -> 2937
B10: 1ч. 2м. | C10: 1*60+ 2*1 | D10: =формула -> 62 | E10: =1*60+ 2*1 | F10: =1*60+ 2*1 -> 62
B11: 18ч. 35м. | C11: 18*60+ 35*1 | D11: =формула -> 1115 | E11: =18*60+ 35*1 | F11: =18*60+ 35*1 -> 1115
B12: 9ч. 22м. | C12: 9*60+ 22*1 | D12: =формула -> 562 | E12: =9*60+ 22*1 | F12: =9*60+ 22*1 -> 562
B13: 1ч. 56м. | C13: 1*60+ 56*1 | D13: =формула -> 116 | E13: =1*60+ 56*1 | F13: =1*60+ 56*1 -> 116
B14: 4д. 21ч. 16м. | C14: 4*1440+ 21*60+ 16*1 | D14: =формула -> 7036 | E14: =4*1440+ 21*60+ 16*1 | F14: =4*1440+ 21*60+ 16*1 -> 7036
B15: 5д. 21ч. 44м. | C15: 5*1440+ 21*60+ 44*1 | D15: =формула -> 8504 | E15: =5*1440+ 21*60+ 44*1 | F15: =5*1440+ 21*60+ 44*1 -> 8504
B16: 18д. 5ч. 52м. | C16: 18*1440+ 5*60+ 52*1 | D16: =формула -> 26272 | E16: =18*1440+ 5*60+ 52*1 | F16: =18*1440+ 5*60+ 52*1 -> 26272
B17: 13д. 8ч. 13м. | C17: 13*1440+ 8*60+ 13*1 | D17: =формула -> 19213 | E17: =13*1440+ 8*60+ 13*1 | F17: =13*1440+ 8*60+ 13*1 -> 19213
B18: 5ч. 48м. | C18: 5*60+ 48*1 | D18: =формула -> 348 | E18: =5*60+ 48*1 | F18: =5*60+ 48*1 -> 348
B19: 23м. | C19: 23*1 | D19: =формула -> 23 | E19: =23*1 | F19: =23*1 -> 23
B20: 3ч. 56м. | C20: 3*60+ 56*1 | D20: =формула -> 236 | E20: =3*60+ 56*1 | F20: =3*60+ 56*1 -> 236
B21: 3ч. 45м. | C21: 3*60+ 45*1 | D21: =формула -> 225 | E21: =3*60+ 45*1 | F21: =3*60+ 45*1 -> 225
B22: 15м. | C22: 15*1 | D22: =формула -> 15 | E22: =15*1 | F22: =15*1 -> 15
B23: 21ч. 42м. | C23: 21*60+ 42*1 | D23: =формула -> 1302 | E23: =21*60+ 42*1 | F23: =21*60+ 42*1 -> 1302
B24: 1д. 41м. | C24: 1*1440+ 41*1 | D24: =формула -> 1481 | E24: =1*1440+ 41*1 | F24: =1*1440+ 41*1 -> 1481
B25: 1ч. 48м. | C25: 1*60+ 48*1 | D25: =формула -> 108 | E25: =1*60+ 48*1 | F25: =1*60+ 48*1 -> 108
A26: Итог: | B26: =INT(D26/1440) &" д. "& INT(MOD(D26,1440)/60) &" ч. "&D26 - (INT(D26/ 1440)*1440+(INT(MOD(D26,1440)/60))*60) &" м." -> 92 д. 17 ч. 12 м. | D26: =SUM(D2:D25) -> 133512
